bitfinex/quotes_ETHUSD_20251130
["timestamp","ask_amount","ask_price","bid_price","bid_amount"]
[1764504757222,0.4696,3010.1,3010.0,0.48622259]
[1764504757625,0.002,3010.2,3010.0,0.68782259]
[1764504757955,0.002,3010.2,3010.1,0.2016]
[1764504758459,0.002,3010.2,3010.0,0.48622259]
[1764504758960,0.002,3010.2,3010.0,0.453]
[1764504759324,0.4696,3010.1,3010.0,0.453]
[1764504760449,0.453,3010.2,3010.0,0.453]
[1764504760757,0.4696,3010.1,3010.0,0.453]
[1764504762130,0.9206,3010.1,3010.0,0.453]
[1764504764667,0.9206,3010.1,3010.0,4.303]
[1764504765646,0.9226,3010.1,3010.0,4.303]
[1764504772770,0.4716,3010.1,3010.0,4.303]
[1764504772969,0.4716,3010.1,3010.0,4.7333]
[1764504773391,0.9263,3010.1,3010.0,4.7333]
[1764504774193,0.002,3010.1,3010.0,4.7333]
[1764504775689,0.002,3010.1,3010.0,4.9349]
[1764504776193,0.002,3010.1,3010.0,4.7333]
[1764504778888,0.9486,3010.1,3010.0,4.7333]
[1764504779087,0.4939,3010.1,3010.0,4.7333]
[1764504780285,0.002,3010.1,3010.0,4.7333]
[1764504780483,0.002,3010.1,3010.0,4.9349]
[1764504780689,0.002,3010.1,3010.0,4.4819]
[1764504781066,0.002,3010.1,3010.0,4.51512259]
[1764504781267,0.002,3010.1,3010.0,4.4819]
[1764504781473,0.002,3010.1,3010.0,4.61498645]
[1764504782391,0.002,3010.1,3010.0,4.41338645]
[1764504782693,0.002,3010.5,3010.1,1.35084265]
[1764504782861,0.002,3010.5,3010.4,2.39512893]
[1764504783067,0.002,3010.5,3010.4,2.60512893]
[1764504783266,0.002,3010.5,3010.4,1.473404]
[1764504784300,0.002,3010.5,3010.4,12.23899811]
[1764504784493,0.002,3010.5,3010.4,15.63972534]
[1764504785266,0.002,3010.5,3010.4,13.85170041]
[1764504786091,0.002,3010.5,3010.4,13.44010041]
[1764504786287,0.002,3010.5,3010.4,13.85170041]
[1764504788465,0.002,3010.8,3010.7,0.72559411]
[1764504788789,0.002,3010.8,3010.7,1.18275352]
[1764504789097,0.002,3010.8,3010.7,1.83055352]
[1764504789498,0.002,3010.8,3010.7,2.03215352]
[1764504790800,0.002,3010.8,3010.7,2.06536838]
[1764504791000,0.002,3010.8,3010.7,2.26696838]
[1764504791704,0.002,3010.8,3010.7,2.06536838]
[1764504792204,0.002,3010.8,3010.7,2.26696838]
[1764504792878,0.9486,3010.8,3010.7,5.67655352]
[1764504793972,0.002,3010.8,3010.7,5.91136838]
[1764504794207,0.002,3010.8,3010.7,5.67655352]
[1764504795111,0.9486,3010.8,3010.7,5.67655352]
[1764504796780,0.9486,3010.8,3010.7,4.30315941]
[1764504796981,0.9486,3010.8,3010.7,3.846]
[1764504799405,0.4939,3010.8,3010.7,3.846]
[1764504800084,0.002,3010.8,3010.7,3.846]
[1764504801104,0.9486,3010.8,3010.7,3.846]
[1764504806116,0.8486,3010.8,3010.7,3.846]
[1764504807118,0.8486,3010.8,3010.6,0.8486]
[1764504808312,0.4638,3010.7,3010.4,0.72559411]
[1764504808515,0.4638,3010.7,3010.3,0.615504]
[1764504808703,0.4638,3010.7,3010.5,0.8486]
[1764504809295,0.467,3010.8,3010.5,0.8486]
[1764504809919,0.467,3010.8,3010.6,0.03321597]
[1764504810505,0.467,3010.8,3010.6,0.467]
[1764504810887,0.4916,3010.7,3010.6,0.467]
[1764504811292,0.9684,3010.7,3010.6,0.467]
[1764504814025,0.6699,3010.9,3010.6,0.7666]
[1764504814724,0.4788,3011.2,3010.7,0.03321486]
[1764504815309,0.4788,3011.2,3010.7,0.51201486]
[1764504818237,0.4788,3011.2,3010.8,3.846]
[1764504818436,0.002,3011.2,3011.1,0.805904]
[1764504818728,0.002,3011.2,3011.1,0.915104]
[1764504818926,0.002,3011.2,3011.1,2.89622893]
[1764504819331,0.002,3011.2,3011.1,2.99702893]
[1764504820109,0.002,3011.2,3011.1,3.29662893]
[1764504820307,0.002,3011.2,3011.1,1.9108263]
[1764504824254,0.9704,3011.2,3011.1,0.8053223]
[1764504824742,0.4936,3011.2,3011.1,0.4031]
[1764504826211,0.9704,3011.2,3011.1,0.1931]
[1764504828836,0.9704,3011.2,3010.9,0.21]
[1764504829046,0.4172,3011.0,3010.9,0.21]
[1764504829615,0.4172,3011.0,3010.9,0.6868]
[1764504829943,0.4172,3011.0,3010.9,0.4768]
[1764504830145,0.894,3011.0,3010.9,0.4768]
[1764504830927,0.4172,3011.0,3010.9,0.4768]
[1764504831630,0.4788,3011.2,3010.9,0.4768]
[1764504831829,0.1916,3012.6,3011.1,0.4004]
[1764504832129,0.4768,3012.0,3011.3,1.13109811]
[1764504832331,0.4768,3012.0,3011.5,0.405504]
[1764504832546,0.1966,3011.9,3011.5,0.21]
[1764504832723,0.4906,3011.6,3011.5,0.21]
[1764504833146,0.9579,3011.6,3011.3,0.21]
[1764504833347,0.42,3011.4,3011.3,0.48170882]
[1764504833518,0.42,3011.4,3011.3,0.27170882]
[1764504833726,0.42,3011.4,3011.3,0.73900882]
[1764504834428,0.8873,3011.4,3011.3,0.73900882]
[1764504834645,0.8873,3011.4,3011.3,0.4673]
[1764504837073,0.42,3011.4,3011.3,0.4673]
[1764504837569,0.4673,3011.6,3011.3,0.4673]
[1764504837729,0.4673,3011.6,3011.4,0.03320714]
[1764504838458,0.4673,3011.6,3011.4,0.50050714]
[1764504838861,0.4906,3011.5,3011.4,0.4673]
[1764504840457,0.002,3011.6,3011.4,0.4673]
[1764504840963,0.002,3011.6,3011.2,0.21]
[1764504840964,0.002,3011.6,3011.3,0.405504]
[1764504841969,0.002,3011.6,3011.5,0.2996]
[1764504843178,0.9599,3011.6,3011.3,0.405504]
[1764504843532,0.4926,3011.6,3011.3,0.405504]
[1764504843737,0.002,3011.6,3011.5,0.2996]
[1764504844235,0.002,3011.6,3011.3,0.405504]
[1764504845039,0.002,3011.6,3011.4,0.03320714]
[1764504847445,0.002,3011.6,3011.5,0.2996]
[1764504847643,0.002,3011.6,3011.5,0.49223458]
[1764504847844,0.002,3011.6,3011.5,4.33823458]
[1764504849984,0.002,3011.6,3011.5,4.74373858]
[1764504850751,0.9599,3011.6,3011.5,4.03863458]
[1764504850956,0.9599,3011.6,3011.5,3.846]
[1764504853176,0.9599,3011.6,3011.5,3.87920604]
[1764504856159,0.9599,3011.6,3011.5,3.846]
[1764504858060,0.9599,3011.6,3011.2,1.18803463]
[1764504858260,0.4906,3011.3,3010.9,0.001]
[1764504858475,0.4906,3011.0,3010.9,0.001]
[1764504858965,0.9579,3011.0,3010.9,0.001]
[1764504863459,0.4575,3011.5,3010.9,0.33381266]
[1764504865068,0.4575,3011.5,3010.9,0.3006]
[1764504865262,0.4575,3011.5,3010.9,0.6002]
[1764504865468,0.4575,3011.5,3010.9,0.63341266]
[1764504866995,0.4575,3011.5,3010.9,0.6002]
[1764504869773,0.002,3011.6,3011.0,0.405504]
[1764504869974,0.002,3011.6,3011.1,0.03321045]
[1764504870174,0.002,3011.6,3011.1,0.13401045]
[1764504870493,0.002,3011.6,3011.1,0.43361045]
[1764504871504,0.002,3011.6,3011.1,0.13401045]
[1764504871671,0.002,3011.6,3011.2,0.2996]
[1764504871872,0.002,3011.6,3011.3,0.03320824]
[1764504872274,0.002,3011.6,3011.5,0.2996]
[1764504872474,0.002,3011.6,3011.3,0.03320824]
[1764504872684,0.4595,3011.6,3011.3,0.03320824]
[1764504873007,0.002,3011.6,3011.3,0.03320824]
[1764504873682,0.4595,3011.6,3011.3,0.03320824]
[1764504873880,0.002,3011.6,3011.3,0.03320824]
[1764504874287,0.002,3011.6,3011.5,0.2996]
[1764504874687,0.002,3011.6,3011.5,0.5992]
[1764504874886,0.002,3011.6,3011.5,5.09391004]
[1764504875088,0.002,3011.6,3011.5,5.60330104]
[1764504875287,0.002,3011.6,3011.5,5.30370104]
[1764504875798,0.002,3011.6,3011.5,5.270495]
[1764504875983,0.002,3011.6,3011.5,4.970895]
[1764504877876,0.4747,3011.6,3011.5,4.355391]
[1764504878071,0.002,3011.6,3011.5,4.654991]
[1764504878306,0.002,3011.6,3011.5,4.355391]
[1764504879706,0.002,3011.6,3011.5,4.654991]
[1764504880297,0.002,3011.6,3011.5,4.68819704]
[1764504881113,0.002,3011.6,3011.5,4.355391]
[1764504881310,0.002,3011.6,3011.5,4.654991]
[1764504881684,0.002,3011.6,3011.5,4.68819704]
[1764504886514,0.002,3011.6,3011.5,4.38859704]
[1764504887190,0.9322,3011.6,3011.5,3.846]
[1764504891525,0.9322,3011.6,3011.1,3.846]
[1764504891722,0.0997008,3011.3,3011.1,3.846]
[1764504892024,0.4727,3011.2,3011.1,3.846]
[1764504892418,0.947,3011.2,3011.1,3.846]
[1764504894624,0.947,3011.2,3011.1,3.847]
[1764504895702,0.4763,3011.6,3011.1,3.847]
[1764504895903,0.4763,3011.6,3011.2,0.03320935]
[1764504896118,0.4763,3011.6,3011.1,3.847]
[1764504896625,0.4763,3011.6,3011.2,0.03320935]
[1764504897130,0.4713,3011.3,3011.2,0.03320935]
[1764504897492,0.9456,3011.3,3011.2,0.03320935]
[1764504897804,0.9456,3011.3,3011.1,3.847]
[1764504898025,0.4713,3011.2,3011.1,3.847]
[1764504900529,0.9456,3011.2,3011.1,3.847]
[1764504902818,0.4713,3011.2,3011.1,3.847]
[1764504903139,0.4743,3011.4,3011.1,4.32636]
[1764504903304,0.4743,3011.5,3011.2,0.03320935]
[1764504903710,0.002,3011.6,3011.2,0.03320935]
[1764504903910,0.002,3011.6,3011.3,0.4743]
[1764504904110,0.4743,3011.5,3011.3,0.4743]
[1764504904325,0.002,3011.6,3011.3,0.4743]
[1764504904533,0.4763,3011.6,3011.3,0.4743]
[1764504904739,0.4763,3011.6,3011.3,0.964446]
[1764504905030,0.4713,3011.4,3011.3,0.964446]
[1764504907033,0.4763,3011.6,3011.3,0.964446]
[1764504907239,0.4763,3011.6,3011.4,3.846]
[1764504907919,0.4713,3011.5,3011.4,3.846]
[1764504908225,0.4713,3011.5,3011.4,4.28293554]
[1764504908430,0.9456,3011.5,3011.4,4.3223]
[1764504909342,0.9456,3011.5,3011.4,3.846]
[1764504909528,0.002,3011.6,3011.4,3.846]
[1764504909735,0.4713,3011.5,3011.4,3.846]
[1764504910321,0.4763,3011.6,3011.4,4.17880714]
[1764504910322,0.002,3011.6,3011.4,4.17880714]
[1764504910649,0.002,3011.6,3011.5,5.16764071]
[1764504911544,0.002,3011.6,3011.5,4.86804071]
[1764504911947,0.002,3011.6,3011.5,5.34234071]
[1764504912439,0.002,3011.6,3011.5,5.64194071]
[1764504912974,0.002,3011.6,3011.5,5.67514675]
[1764504913505,0.002,3011.6,3011.5,6.40074086]
[1764504914335,0.002,3011.6,3011.5,6.50664486]
[1764504914521,0.002,3011.6,3011.5,6.77303882]
[1764504915140,0.002,3011.6,3011.5,6.47343882]
[1764504919548,0.002,3011.6,3011.5,6.06793482]
[1764504920349,0.002,3011.6,3011.5,6.47343882]
[1764504920531,0.002,3011.6,3011.5,6.26343882]
[1764504920730,0.002,3011.6,3011.5,6.47343882]
[1764504922636,0.002,3011.6,3011.5,6.77303882]
[1764504930432,0.002,3012.0,3011.7,0.405504]
[1764504930633,0.002,3012.0,3011.9,1.43069811]
[1764504931049,0.002,3012.0,3011.9,2.20389811]
[1764504932459,0.002,3012.0,3011.9,1.90429811]
[1764504932663,0.002,3012.0,3011.9,2.11429811]
[1764504932866,0.002,3012.0,3011.9,2.74008792]
[1764504933062,0.002,3012.0,3011.9,3.03968792]
[1764504933237,0.002,3012.0,3011.9,2.74008792]
[1764504933436,0.002,3012.0,3011.9,3.03968792]
[1764504933845,0.002,3012.0,3011.9,6.88368792]
[1764504934059,0.002,3012.0,3011.9,10.38468792]
[1764504934267,0.002,3012.0,3011.9,6.88368792]
[1764504934736,0.002,3012.0,3011.9,6.58408792]
[1764504936256,0.002,3012.0,3011.9,6.61728955]
[1764504936564,0.002,3012.0,3011.9,6.91688955]
[1764504936764,0.002,3012.0,3011.9,6.88368792]
[1764504938481,0.002,3012.0,3011.9,6.37408792]
[1764504938642,0.002,3012.0,3011.9,6.58408792]
[1764504939345,0.002,3012.0,3011.9,6.37408792]
[1764504939544,0.002,3012.0,3011.9,6.58408792]
[1764504940756,0.002,3012.0,3011.9,6.88368792]
[1764504941260,0.002,3012.0,3011.9,6.67368792]
[1764504941439,0.002,3012.0,3011.9,6.88368792]
[1764504942077,0.002,3012.0,3011.9,6.58408792]
[1764504942445,0.002,3012.0,3011.9,6.88368792]
[1764504942994,0.1937,3012.8,3012.1,1.13109811]
[1764504942995,0.4736,3012.4,3012.1,1.13109811]
[1764504943180,0.4736,3012.4,3012.3,0.405504]
[1764504943475,0.9598,3012.4,3012.2,0.49730981]
[1764504943676,0.4736,3012.4,3012.3,0.4736]
[1764504943876,0.1937,3012.8,3012.3,0.4736]
[1764504944174,0.2934008,3012.8,3012.4,3.842]
[1764504944467,0.4736,3012.7,3012.4,3.842]
[1764504944668,0.4862,3012.5,3012.4,3.842]
[1764504945069,0.9598,3012.5,3012.4,3.842]
[1764504945443,1.0595008,3012.5,3012.4,3.842]
[1764504945860,0.9598,3012.5,3012.4,3.842]
[1764504947889,1.0595008,3012.5,3012.4,3.842]
[1764504948772,1.0595008,3012.5,3012.1,3.842]
[1764504948969,0.4736,3012.4,3012.1,3.842]
[1764504949170,0.4862,3012.2,3012.1,3.842]
[1764504949854,0.9598,3012.2,3012.1,3.842]
[1764504954366,0.9598,3012.2,3011.9,0.9598]
[1764504954568,0.002,3012.5,3011.9,0.9598]
[1764504954569,0.4588,3012.0,3011.9,0.9598]
[1764504954886,0.4588,3012.0,3011.5,0.211]
[1764504955086,0.4588,3011.7,3011.5,0.211]
[1764504955270,0.4588,3011.7,3011.6,0.4595]
[1764504960400,0.5714,3011.9,3011.6,0.4595]
[1764504960697,0.5714,3011.9,3011.7,0.03320383]
[1764504960895,0.002,3012.5,3011.9,0.405504]
[1764504961093,0.4615,3012.5,3012.0,0.24320053]
[1764504961269,0.4615,3012.5,3012.0,0.64870453]
[1764504961670,0.4615,3012.5,3012.0,0.24320053]
[1764504961903,0.4615,3012.5,3012.0,0.70470053]
[1764504962398,0.4588,3012.1,3011.8,0.21]
[1764504962594,0.4588,3012.1,3011.9,0.4615]
[1764504962899,0.9183,3012.1,3011.9,0.4615]
[1764504963412,0.4588,3012.1,3011.9,0.49470163]
[1764504963970,0.002,3012.5,3012.0,0.2996]
[1764504964176,0.4615,3012.5,3012.1,0.03319942]
[1764504964392,0.002,3012.5,3012.1,0.03319942]
[1764504964590,0.002,3012.5,3012.1,0.13119942]
[1764504964896,0.4588,3012.2,3011.9,0.4615]
[1764504965098,0.4615,3012.5,3011.9,0.4615]
[1764504965394,0.4588,3012.0,3011.8,0.21]
[1764504965800,0.4588,3012.0,3011.9,0.03320163]
[1764504966171,0.4595,3012.2,3011.9,0.03320163]
[1764504966372,0.002,3012.5,3011.9,0.03320163]
[1764504966572,0.4595,3012.4,3011.9,0.03320163]
[1764504968202,0.002,3012.2,3011.9,0.33280163]
[1764504968600,0.002,3012.2,3012.1,0.3976]
[1764504970701,0.9203,3012.2,3011.9,0.22690163]
[1764504971080,0.4608,3012.2,3011.9,0.22690163]
[1764504971276,0.002,3012.2,3011.9,0.22690163]
[1764504971478,0.002,3012.2,3012.1,0.2996]
[1764504971801,0.002,3012.2,3011.9,0.22690163]
[1764504971990,0.4588,3012.0,3011.9,0.599204]
[1764504972505,0.4588,3012.0,3011.9,4.441204]
[1764504972707,0.4588,3012.0,3011.9,4.9064244]
[1764504973208,0.002,3012.2,3011.9,4.9064244]
[1764504973511,0.4615,3012.2,3011.9,4.9064244]
[1764504974016,0.002,3012.2,3011.9,4.9064244]
[1764504974181,0.002,3012.2,3012.0,0.03320053]
[1764504974381,0.002,3012.2,3012.1,0.49396249]
[1764504975194,0.002,3012.2,3012.1,0.52716191]
[1764504975518,0.002,3012.2,3012.1,0.82676191]
[1764504976085,0.002,3012.2,3012.1,0.49396249]
[1764504976516,0.4608,3012.2,3012.1,0.49396249]
[1764504978001,0.9203,3012.2,3012.1,0.49396249]
[1764504978504,0.9203,3012.2,3012.1,4.33596249]
[1764504978907,0.4608,3012.2,3012.1,4.33596249]
[1764504981008,0.002,3012.2,3012.1,4.33596249]
[1764504983710,0.4704,3012.2,3012.1,4.33596249]
[1764504984153,0.002,3012.2,3012.1,4.33596249]
[1764504984339,0.002,3012.2,3012.1,4.36916191]
[1764504984535,0.002,3012.2,3012.1,5.17226591]
[1764504984737,0.002,3012.2,3012.1,5.89786002]
[1764504984934,0.002,3012.2,3012.1,6.19746002]
[1764504985336,0.002,3012.2,3012.1,6.88556002]
[1764504985528,0.002,3012.2,3012.1,6.8523606]
[1764504988730,0.002,3012.2,3012.1,8.84652988]
[1764504989126,0.002,3012.2,3012.1,7.0623606]
[1764504989346,0.002,3012.2,3012.1,8.84628188]
[1764504989556,0.002,3012.2,3012.1,7.0623606]
[1764504989751,0.1968,3013.3,3012.5,0.405504]
[1764504989935,0.1968,3013.3,3012.4,0.72559411]
[1764504989936,0.4944,3013.2,3012.7,0.405504]
[1764504990316,0.4944,3013.2,3012.7,0.899904]
[1764504990521,0.4684,3012.8,3012.7,0.899904]
[1764504990748,0.4684,3012.8,3012.7,1.3948944]
[1764504990950,0.9628,3012.8,3012.7,1.3948944]
[1764504991116,0.4944,3013.6,3012.7,1.6944944]
[1764504991313,0.1968,3013.7,3012.7,0.899904]
[1764504991314,0.4684,3012.8,3012.7,0.899904]
[1764504991514,0.4684,3012.8,3012.7,0.7044]
[1764504991732,0.9628,3012.8,3012.7,0.7044]
[1764504992316,0.9628,3012.8,3012.7,0.4944]
[1764504992523,0.9628,3012.8,3012.5,0.21]
[1764504992722,0.1968,3012.9,3012.5,0.615504]
[1764504992723,0.4684,3012.6,3012.5,0.615504]
[1764504992918,0.4684,3012.6,3012.4,0.03319612]
[1764504993124,0.4684,3012.6,3012.5,0.21]
[1764504993125,0.9628,3012.6,3012.5,0.21]
[1764504993355,0.9628,3012.6,3012.5,0.7044]
[1764504994055,0.4944,3013.6,3012.6,0.405504]
[1764504994359,0.4944,3013.6,3012.8,0.405504]
[1764504994523,0.4944,3013.6,3012.9,0.21]
[1764504994920,0.4944,3013.6,3013.0,0.405504]
[1764504996655,0.4944,3013.6,3013.1,0.1008]
[1764504997032,0.1968,3013.7,3013.1,0.1008]
[1764504997443,0.1968,3013.7,3013.2,0.23486842]
[1764504997757,0.6912,3013.7,3013.2,0.23486842]
[1764504998433,0.1968,3013.7,3013.2,0.23486842]
[1764504998624,0.6912,3013.7,3013.2,0.23486842]
[1764504999255,0.4944,3013.6,3013.2,0.23486842]
[1764504999450,0.4944,3013.6,3013.2,0.26805572]
[1764505000349,0.1968,3013.7,3013.2,0.26805572]
[1764505000555,0.6912,3013.7,3013.2,0.405504]
[1764505000753,0.6912,3013.7,3013.3,0.23486842]
[1764505001127,0.1968,3013.7,3013.3,0.23486842]
[1764505001328,0.4684,3013.4,3013.3,0.23486842]
[1764505001848,0.9628,3013.4,3013.3,0.23486842]
[1764505002629,0.1968,3013.7,3013.3,0.53446842]
[1764505003357,0.6912,3013.7,3013.3,0.53446842]
[1764505003954,0.1968,3013.7,3013.3,0.23486842]
[1764505004160,0.4944,3013.6,3013.3,0.23486842]
[1764505004844,0.4684,3013.4,3013.3,0.23486842]
[1764505006068,0.4944,3013.6,3013.3,0.23486842]
[1764505006232,0.1988,3013.7,3013.4,0.0331851]
[1764505006431,0.6932,3013.7,3013.4,0.0331851]
[1764505006864,0.6932,3013.7,3013.4,0.4386891]
[1764505007774,0.002,3013.7,3013.4,0.4386891]
[1764505007974,0.002,3013.7,3013.6,0.2996]
[1764505008338,0.9648,3013.7,3013.4,0.405504]
[1764505009247,0.4684,3013.5,3013.4,0.405504]
[1764505009874,0.9628,3013.5,3013.4,0.405504]
[1764505011145,0.9628,3013.5,3013.4,4.245504]
[1764505011463,0.9628,3013.5,3013.4,4.7106048]
[1764505013771,0.9628,3013.5,3013.4,4.3051008]
[1764505015136,0.4684,3013.5,3013.4,4.3051008]
[1764505015336,0.002,3013.7,3013.4,4.6047008]
[1764505016266,0.002,3013.7,3013.6,0.46378848]
[1764505017160,0.002,3013.7,3013.6,4.30378848]
[1764505017466,0.4748,3013.7,3013.6,4.30378848]
[1764505018564,0.9588,3013.7,3013.6,4.30378848]
[1764505018740,0.9588,3013.7,3013.6,3.84]
[1764505019366,0.4748,3013.7,3013.6,3.84]
[1764505020067,0.9588,3013.7,3013.6,3.84]
[1764505022550,0.9588,3013.7,3013.6,4.7988]
[1764505025784,0.4748,3013.7,3013.6,4.7988]
[1764505025985,0.4748,3013.7,3013.6,5.27868]
[1764505027754,0.002,3013.7,3013.6,5.27868]
[1764505027954,0.4748,3013.7,3013.6,5.27868]
[1764505028385,0.002,3013.7,3013.6,5.57828]
[1764505028689,0.002,3013.7,3013.6,7.25216101]
[1764505028863,0.002,3013.7,3013.6,9.0027512]
[1764505029066,0.002,3013.7,3013.6,7.21897811]
[1764505030266,0.002,3013.7,3013.6,8.99838089]
[1764505030595,0.002,3013.7,3013.6,7.21897811]
[1764505031764,0.002,3013.7,3013.6,7.70535989]
[1764505033906,0.002,3013.7,3013.6,14.50899908]
[1764505034222,0.002,3013.7,3013.6,8.10899908]
[1764505034812,0.002,3013.7,3013.6,16.90488981]
[1764505035007,0.002,3013.7,3013.6,13.61797811]
[1764505035209,0.002,3013.7,3013.6,5.57828]
[1764505035519,0.002,3013.7,3013.6,6.08688]
[1764505035709,0.002,3013.7,3013.6,6.492384]
[1764505035909,0.002,3013.7,3013.6,7.21797811]
[1764505036729,0.002,3013.7,3013.6,6.51387411]
[1764505037019,0.002,3013.7,3013.6,6.91937811]
[1764505037211,0.002,3013.7,3013.6,6.00427411]
[1764505037392,0.9588,3013.7,3013.6,6.21427411]
[1764505037997,0.4748,3013.7,3013.6,6.21427411]
[1764505038205,0.9588,3013.7,3013.6,6.21427411]
[1764505038921,0.9588,3013.7,3013.6,6.61977811]
[1764505039311,0.002,3013.7,3013.6,6.61977811]
[1764505039515,0.002,3013.7,3013.6,6.91937811]
[1764505039823,0.002,3013.7,3013.6,3.07937811]
[1764505040032,0.002,3013.7,3013.6,3.11256101]
[1764505040235,0.002,3013.7,3013.6,3.07937811]
[1764505042114,0.002,3013.7,3013.6,2.86937811]
[1764505042301,0.002,3013.7,3013.6,3.07937811]
[1764505042836,0.002,3013.7,3013.6,3.11256101]
[1764505043041,0.002,3013.7,3013.6,3.07937811]
[1764505045001,0.002,3013.7,3013.6,3.11256101]
[1764505045218,0.002,3013.7,3013.6,3.61256101]
[1764505047732,0.002,3013.7,3013.6,3.91216101]
[1764505048610,0.002,3013.7,3013.6,3.87897811]
[1764505048803,0.002,3013.7,3013.6,3.91216101]
[1764505049443,0.002,3013.7,3013.6,3.87897811]
[1764505049631,0.002,3013.7,3013.6,3.57937811]
[1764505052243,0.4661,3013.7,3013.6,2.77877811]
[1764505052409,0.002,3013.7,3013.6,2.77877811]
[1764505053234,0.002,3013.7,3013.6,2.56977811]
[1764505053235,0.4661,3013.7,3013.6,2.56977811]
[1764505053434,0.4661,3013.7,3013.6,2.77877811]
[1764505053647,0.9495,3013.7,3013.6,1.68439411]
[1764505053813,0.9495,3013.7,3013.6,1.89439411]
[1764505054146,0.9495,3013.7,3013.6,2.29989811]
[1764505054440,0.9495,3013.7,3013.6,0.9588]
[1764505056328,0.9495,3013.7,3013.3,0.9495]
[1764505056525,0.4834,3013.6,3013.3,0.9495]
[1764505056725,0.4641,3013.4,3013.3,0.9495]
[1764505057256,0.9475,3013.4,3013.3,0.9495]
[1764505057950,0.002,3013.7,3013.4,0.405504]
[1764505058249,0.002,3013.7,3013.5,0.41196302]
[1764505058637,0.002,3013.7,3013.6,0.705104]
[1764505059229,0.002,3013.7,3013.6,0.405504]
[1764505059541,0.4661,3013.7,3013.6,0.405504]
[1764505059743,0.9495,3013.7,3013.6,0.21]
[1764505060456,0.9495,3013.7,3013.6,0.615504]
[1764505060656,0.9495,3013.7,3013.5,0.16877902]
[1764505060958,0.002,3013.7,3013.6,0.21]
[1764505061366,0.9475,3013.6,3013.5,0.21]
[1764505061528,0.9475,3013.6,3013.4,0.405504]
[1764505061730,0.9475,3013.5,3013.4,0.21]
[1764505062358,0.9475,3013.5,3013.3,0.9495]
[1764505062560,0.002,3013.7,3013.3,1.355004]
[1764505062561,0.9475,3013.4,3013.3,1.355004]
[1764505063488,0.9475,3013.4,3013.3,0.9495]
[1764505064675,0.9475,3013.4,3013.3,5.51509411]
[1764505065986,0.9475,3013.4,3013.3,4.7895]
[1764505066349,0.002,3013.7,3013.3,4.7895]
[1764505066690,0.4641,3013.4,3013.3,3.84]
[1764505067050,0.9475,3013.4,3013.3,3.84]
[1764505067379,0.9475,3013.4,3013.3,4.3234]
[1764505070582,0.0997008,3013.3,3012.9,3.84]
[1764505070796,0.4641,3013.0,3012.9,0.00336]
[1764505070998,0.4641,3013.0,3012.7,0.93559411]
[1764505071171,0.4834,3012.9,3012.8,0.00416]
[1764505071370,0.4834,3012.9,3012.8,0.00336]
[1764505071570,1.136,3012.9,3012.8,0.48676]
[1764505073605,1.136,3012.9,3012.8,0.00336]
[1764505073801,1.136,3012.9,3012.7,1.00069876]
[1764505074107,0.4884,3012.8,3012.7,1.00069876]
[1764505074306,0.9485,3012.8,3012.7,1.00069876]
[1764505074618,0.4601,3012.8,3012.7,1.00069876]
[1764505075504,0.1885,3013.1,3012.7,1.30029876]
[1764505075707,0.4884,3013.3,3012.8,0.33279171]
[1764505075896,0.4884,3013.3,3012.9,0.21336]
[1764505076082,0.4884,3013.3,3013.0,0.03318951]
[1764505076607,0.4884,3013.3,3013.1,0.2996]
[1764505077081,0.4601,3013.2,3013.1,0.2996]
[1764505077905,0.9485,3013.2,3013.1,0.2996]
[1764505078104,0.1979,3013.4,3013.1,0.5992]
[1764505078314,0.6863,3013.4,3013.2,0.0331873]
[1764505078714,0.4601,3013.3,3013.2,0.0331873]
[1764505079120,0.4601,3013.3,3013.2,0.7194873]
[1764505080309,0.9485,3013.3,3013.2,0.6863]
[1764505081029,0.1999,3013.4,3013.2,0.6863]
[1764505081205,0.002,3013.4,3013.2,0.6863]
[1764505081622,0.002,3013.4,3013.3,0.915104]
[1764505081800,0.002,3013.4,3013.3,2.27079676]
[1764505082418,0.4621,3013.4,3013.3,1.97119676]
[1764505082794,0.002,3013.4,3013.3,1.97119676]
[1764505083187,0.002,3013.4,3013.3,1.35569276]
[1764505083405,0.002,3013.4,3013.3,2.27079676]
[1764505083607,0.4621,3013.4,3013.3,2.00438296]
[1764505083806,0.4621,3013.4,3013.3,0.93559411]
[1764505084012,0.002,3013.4,3013.3,0.93559411]
[1764505084696,0.002,3013.4,3013.3,0.96878031]
[1764505085099,0.002,3013.4,3013.3,0.93559411]
[1764505085512,0.002,3013.4,3013.3,1.23519411]
[1764505085711,0.002,3013.4,3013.3,1.55500972]
[1764505085914,0.002,3013.4,3013.3,1.52182352]
[1764505086103,0.4621,3013.4,3013.3,5.36182352]
[1764505086309,0.9505,3013.4,3013.3,5.36182352]
[1764505087299,0.4621,3013.4,3013.3,5.36182352]
[1764505088122,0.9505,3013.4,3013.3,5.36182352]
[1764505091146,0.4621,3013.4,3013.3,5.15182352]
[1764505091291,0.002,3013.4,3013.3,4.77559411]
[1764505091498,0.9505,3013.4,3013.3,4.77559411]
[1764505093142,0.9505,3013.4,3013.3,3.84]
[1764505095163,0.9505,3013.4,3013.1,3.84]
[1764505095453,0.4884,3013.3,3013.1,3.84]
[1764505095674,0.4601,3013.2,3013.1,3.84]
[1764505096052,0.9485,3013.2,3013.1,3.84]